Cogmind - Beta 14 @@@ ROGUE MODE // 2025.01.05 @ 20:03:26 Player: Prince Malik Result: Destroyed by G-34 Mercenary with Small Laser Performance ------------- Evolutions (1) 500 Regions Visited (2) 400 Robots Destroyed (11) 55 Value Destroyed (350) 350 Prototype IDs (0) 0 Alien Tech Used (0) 0 Bonus (0) 0 TOTAL SCORE: 1305 Bonus ------- None Cogmind --------- Core Integrity 0/400 Matter 300/300 Energy 100/100 System Corruption 0% Temperature Cool (6) Movement Core (1350) Ox26 Location -9/Materials Parts ------- > --- POWER (2) -------- (None) > --- PROPULSION (2) --- (None) > --- UTILITY (2) ------ Huge Storage Unit Terrain Scan Processor > --- WEAPON (3) ------- (None) > --- INVENTORY (25) --- Ion Engine Light Treads Light Treads Compact Wheel Compact Wheel Peak State ------------ > --- POWER ------------ Light Ion Engine Light Nuclear Core > --- PROPULSION ------- Aluminum Leg Aluminum Leg > --- UTILITY ---------- Huge Storage Unit Terrain Scan Processor > --- WEAPON ----------- Small Laser Small Laser Datajack > --- INVENTORY -------- Light Treads Light Treads Aluminum Leg Aluminum Leg Compact Wheel Compact Wheel [Rating: 12] Favorites ----------- Power Light Ion Engine Engine Light Ion Engine Power Core Light Nuclear Core Propulsion Aluminum Leg Leg Aluminum Leg Utility Huge Storage Unit Storage Huge Storage Unit Processor Terrain Scan Processor Weapon Small Laser Energy Gun Small Laser Ballistic Gun Light Assault Rifle Special Melee Weapon Datajack Build | -11 -10 -9 ------- Run | Yrd Mat Mat Slots Evolved 2 | . . 2 Power 1 | . . 1 Propulsion . | . . . Utility . | . . . Weapon 1 | . . 1 Parts Attached 16 | 6 6 4 Power 3 | 1 1 1 Engine 2 | 1 . 1 Core 1 | . 1 . Reactor . | . . . Propulsion 5 | 2 2 1 Treads . | . . . Leg 5 | 2 2 1 Wheel . | . . . Hover . | . . . Flight . | . . . Utility 3 | 1 1 1 Device . | . . . Storage 2 | 1 1 . Processor 1 | . . 1 Hackware . | . . . Protection . | . . . Artifact . | . . . Weapon 5 | 2 2 1 Energy Gun 3 | 1 2 . Energy Cannon . | . . . Ballistic Gun 1 | 1 . . Ballistic Cannon . | . . . Launcher . | . . . Special Weapon . | . . . Impact Weapon . | . . . Slashing Weapon . | . . . Piercing Weapon . | . . . Special Melee Weapon 1 | . . 1 Unidentified Prototypes . | . . . Parts Lost 8 | . 1 7 Power 3 | . 1 2 Propulsion 2 | . . 2 Utility . | . . . Weapon 3 | . . 3 Highest Loss Streak 5 | . 1 5 To Critical Strikes . | . . . Average Slot Usage (%) 78 | . 68 85 Engine 10 | . 10 10 Core 6 | . 1 10 Leg 20 | . 20 20 Storage 12 | . 14 11 Processor 5 | . . 9 Energy Gun 14 | . 8 18 Ballistic Gun 5 | . 12 . Special Melee Weapon 2 | . . 4 Peak Build Rating 12 | 6 8 12 Average Rating 8 | 4 5 10 On Entrance 4 | . 6 8 Naked Turns . | . . . Heaviest Build 91 | 10 87 91 Greatest Support 20 | 20 20 20 Greatest Overweight (x) 8 | . 8 8 Average Overweight (x) 2 | . 2 4 Largest Inventory Capacity 25 | 8 25 25 Average Capacity 22 | 7 20 25 Most Carried 12 | 6 12 7 Average Carried 6 | 3 8 5 Final Capacity 25 | 8 25 25 Final Carried 8 | 6 8 5 Class Distribution -------------------- 56% | Mutant 43% | Scavenger-Mutant Dominant Class ---------------- Mutant | -10/Materials Scavenger-Mutant | -9/Materials Resources | -11 -10 -9 ----------- Run | Yrd Mat Mat Matter Collected 367 | 260 67 40 Remotely . | . . . Salvage Created 398 | . 169 229 Parts 21 | . 10 11 Haulers Intercepted . | . . . Recyclers Shooed . | . . . Parts Field Recycled . | . . . Retrieved Matter . | . . . Parts Self-Destructed . | . . . Prevented . | . . . Kills | -11 -10 -9 ------- Run | Yrd Mat Mat Combat Hostiles Destroyed 11 | . 4 7 Guns 11 | . 4 7 Classes Destroyed 3 | . 1 2 Swarmer 2 | . . 2 Grunt 8 | . 4 4 Sentry 1 | . . 1 Best Kill Streak 2 | . 2 2 Combat Bots Only 2 | . 2 2 Max Kills in Single Turn 1 | . 1 1 Gunslinging . | . . . Exploded . | . . . Melee . | . . . Uniques/NPCs Destroyed . | . . . Combat | -11 -10 -9 -------- Run | Yrd Mat Mat Hostile Shots Fired 159 | . 49 110 Missed 45 | . 12 33 Damage Taken 1321 | . 422 899 Core 530 | . 120 410 Absorbed by Shields . | . . . Core Remaining (%) 76 | 100 52 . Volleys Fired 50 | . 20 30 Largest 2 | . 2 2 Hottest 80 | . 60 80 Shots Fired 73 | . 25 48 Gun 73 | . 25 48 Cannon . | . . . Launcher . | . . . Special . | . . . Kinetic 20 | . 20 . Thermal 53 | . 5 48 Explosive . | . . . Electromagnetic . | . . . Robot Hit Streak 9 | . 9 7 Robot Miss Streak 3 | . 1 3 Penetration Max . | . . . Secondary Targets . | . . . Shots Hit Robots 44 | . 20 24 Core Hits 22 | . 9 13 Critical Kills . | . . . Critical Parts Destroyed . | . . . Critical Strikes . | . . . Melee Attacks . | . . . Impact . | . . . Slashing . | . . . Piercing . | . . . Sneak Attacks . | . . . Combat Hostiles . | . . . Follow-up Attacks . | . . . Damage Inflicted 435 | . 153 282 Guns 435 | . 153 282 Cannons . | . . . Explosions . | . . . Melee . | . . . Ramming . | . . . Kinetic 108 | . 108 . Thermal 327 | . 45 282 Explosive . | . . . Electromagnetic . | . . . Impact . | . . . Slashing . | . . . Piercing . | . . . Highest Corruption . | . . . Average Corruption . | . . . Corruption Purged . | . . . Corruption Blocked . | . . . Overload Shots . | . . . Overflow Damage . | . . . Projectiles . | . . . Explosions . | . . . Melee . | . . . Knockbacks . | . . . Impact . | . . . Kinetic . | . . . Secondary . | . . . Self-Inflicted Damage . | . . . Shots . | . . . Rammed 2 | . . 2 Targets Rammed 3 | . 1 2 Kicked 1 | . 1 . Crushed . | . . . Highest Temperature 372 | . 67 372 Average Temperature 116 | . 24 138 Received Heat Transfer 690 | . 231 459 Effects 1 | . . 1 Shutdowns 1 | . . 1 Siege Activations . | . . . Robots Corrupted . | . . . Combat Hostiles . | . . . Parts Fried . | . . . Impact Corruptions . | . . . Robots Melted . | . . . Combat Hostiles . | . . . Parts Melted . | . . . Heat Transferred 750 | . 100 650 Parts Sabotaged . | . . . Parts Stolen . | . . . Parts Stripped . | . . . Power Chain Reactions . | . . . Alert | -11 -10 -9 ------- Run | Yrd Mat Mat Peak Influence 105 | . 105 90 Initial . | . . . Average 26 | . 35 22 Maximum Alert Level . | . . . Low Security (%) 100 | 100 100 100 Level 1 . | . . . Level 2 . | . . . Level 3 . | . . . Level 4 . | . . . Level 5 . | . . . High Security . | . . . Max Security . | . . . Squads Dispatched 2 | . 1 1 Investigation 1 | . . 1 Extermination . | . . . Reinforcement 1 | . 1 . Assault . | . . . Garrison . | . . . Intercept . | . . . Searches Triggered . | . . . Construction Impeded . | . . . Haulers Reinforced . | . . . Active Scanning Responses . | . . . Cargo Convoy Interrupts . | . . . Stealth | -11 -10 -9 --------- Run | Yrd Mat Mat Distress Signals 2 | . . 2 Communications Jammed . | . . . Distress Signals . | . . . Times Spotted 23 | . 8 15 Peak Tracking Total 5 | . 2 5 Tactical Retreats . | . . . Traps | -11 -10 -9 ------- Run | Yrd Mat Mat Traps Triggered 2 | . 1 1 Indirectly . | . . . Trap Hack Attempts . | . . . Triggered . | . . . Disarmed . | . . . Reprogrammed . | . . . Reused . | . . . Traps Extracted . | . . . Installed . | . . . Triggered . | . . . Machines | -11 -10 -9 ---------- Run | Yrd Mat Mat Machines Disabled . | . . . Max in Single Turn . | . . . Machines Repaired . | . . . Machines Dismantled . | . . . Machines Sabotaged . | . . . Overloaded Fab Kills . | . . . Hacking | -11 -10 -9 --------- Run | Yrd Mat Mat Machines Accessed 3 | . 3 . Terminals 3 | . 3 . Fabricators . | . . . Repair Stations . | . . . Recycling Units . | . . . Scanalyzers . | . . . Garrison Access . | . . . Total Hacks 5 | . 5 . Successful 1 | . 1 . Failed 4 | . 4 . Catastrophic . | . . . Database Lockouts . | . . . Manual . | . . . Terminals 5 | . 5 . Fabricators . | . . . Repair Stations . | . . . Recycling Units . | . . . Scanalyzers . | . . . Garrison Access . | . . . Terminal Hacks 1 | . 1 . Dispatch Records 1 | . 1 . Fabricator Hacks . | . . . Repair Station Hacks . | . . . Recycling Unit Hacks . | . . . Scanalyzer . | . . . Garrison Access Hacks . | . . . Unauthorized Hacks . | . . . Terminals . | . . . Fabricators . | . . . Repair Stations . | . . . Recycling Units . | . . . Scanalyzers . | . . . Garrison Access . | . . . Data Cores Recovered . | . . . Used . | . . . Hacking Detections 1 | . 1 . Full Trace Events . | . . . Feedback Events . | . . . Feedback Blocked . | . . . Robot Schematics Acquired . | . . . Robots Built . | . . . Authchips . | . . . Time . | . . . Total Robot Build Rating . | . . . Part Schematics Acquired . | . . . Parts Built . | . . . Authchips . | . . . Time . | . . . Total Part Build Rating . | . . . Parts Repaired . | . . . Time . | . . . Parts Recycled . | . . . Recycled Matter . | . . . Retrieved Matter . | . . . Retrieved Components . | . . . Parts Scanalyzed . | . . . Part Schematics Acquired . | . . . Parts Damaged . | . . . Bothacking | -11 -10 -9 ------------ Run | Yrd Mat Mat Used RIF Installer . | . . . Robots Hacked . | . . . Non-combat . | . . . Combat . | . . . Robot Hacks Applied . | . . . Relay Couplers Released . | . . . Fabnet Peak Effective % . | . . . Robots Rewired . | . . . Allies Hacked . | . . . Hacks Repelled . | . . . Allies | -11 -10 -9 -------- Run | Yrd Mat Mat Total Allies . | . . . Largest Group . | . . . Highest-Rated Group . | . . . Highest-Rated Ally . | . . . Total Orders . | . . . Ally Attacks . | . . . Total Damage . | . . . Kills . | . . . Allies Corrupted . | . . . Allies Melted . | . . . Intel | -11 -10 -9 ------- Run | Yrd Mat Mat Robot Analysis Total . | . . . Derelict Logs Recovered . | . . . Drone Launches . | . . . Drone Recoveries . | . . . Exploration | -11 -10 -9 ------------- Run | Yrd Mat Mat Turns Passed 1250 | 69 519 662 Spaces Moved 333 | 48 148 137 Core 8 | 8 . . Treads . | . . . Legs 325 | 40 148 137 Wheels . | . . . Hover . | . . . Flight . | . . . Fastest Speed 50 | 50 120 400 Average Speed 315 | 108 303 402 Slowest Speed 680 | 120 680 680 Overloaded Moves . | . . . Propulsion Burnouts . | . . . Robots Hopped . | . . . Cave-ins Triggered . | . . . Exploration Rate (%) 21 | 4 39 20 Regions Visited 2 Branch Regions . Pre-discovered Areas . | . . . Known Exits Taken . | . . . Unknown Exits Taken 2 | 1 1 . Scrap Searched . | . . . Spaces Dug . | . . . Terrain Destroyed . | . . . Melee . | . . . Projectile . | . . . AOE . | . . . Terrain Rammed . | . . . Walls Destroyed . | . . . Machines Disabled . | . . . Actions | -11 -10 -9 --------- Run | Yrd Mat Mat Total 437 | 65 195 177 Wait 6 | . 6 . Move 331 | 47 147 137 Hop . | . . . Pick Up 24 | 12 10 2 Fast Attach . | . . . Attach 13 | 6 4 3 Detach . | . . . Swap 3 | . 2 1 Drop 7 | . 5 2 Fire 50 | . 20 30 Melee . | . . . Ram 2 | . . 2 Kick 1 | . 1 . Crush . | . . . Escape Stasis . | . . . Rewire . | . . . Trap . | . . . Miscellaneous . | . . . Route ------- -11/Scrapyard -10/Materials (discovered 2 exits: [*Mat] / [*Min]) -9/Materials (discovered 1 exit: [*Min]) History --------- Turn | Location | Event 5 | -11/Scrapyard | Discovered new exit (range 15) 70 | -11/Scrapyard | Entered Materials 155 | -10/Materials | Discovered new exit (range 11) 314 | -10/Materials | Build established: Mutant 529 | -10/Materials | Discovered new exit (range 15) 589 | -10/Materials | Entered another Materials area 589 | -9/Materials | Evolved 2 slots: Power x1, Weapon x1 822 | -9/Materials | Build established: Scavenger-Mutant 1169 | -9/Materials | Discovered new exit (range 12) 1235 | -9/Materials | Core integrity fell below 50% 1246 | -9/Materials | Core integrity fell below 20% 1251 | -9/Materials | Destroyed by G-34 Mercenary with Small Laser Last Messages --------------- C-30 ARC bursts open, deploying its payload. G-47 Trooper unfolds itself. G-34 Mercenary unfolds itself. Electrolysis Chamber disabled. Lgt. Ion Engine destroyed. S-10 Pest destroyed. Aluminum Leg destroyed. K-01 Serf collects debris. Aluminum Leg destroyed. Lgt. Nuclear Core destroyed. K-01 Serf collects debris. Sml. Laser destroyed. K-01 Serf collects debris. Slammed into G-47 Trooper. K-01 Serf collects debris. R-06 Scavenger collects Flight Unit. Slammed into G-47 Trooper. Terrain Scan Processor broken. Destabilizing: Short circuit. K-01 Serf cleans the Terminal. Map ----- +----------------------------------------------------+ | ?????#???????????????????????????????????????????? | | ????? ???????????????????????????????????????????? | | ????? ???????????????????????????????????????????? | | ????? ???????????????????????????????????????????? | | ????? ???????????????????????????????????????????? | | ????# ???????????????????????????????????????????? | | ????# ###########????????????????????????????????? | | ????# # #????????????????????????????????? | | ????# # #??????? ????????????????????????? | | ????# # #?????? ??????????????????????? | | ????# #= % #????? #?????????????????????? | | ????# ###+#######????| #?????????????????????? | | ??### #?#%#??????????? < #?????????????????????? | | ### ###%#??????????? #?????????????????????? | | % #??????????? #?????????????????????? | | ### [ !#??????????? #?????????????????????? | | ??#[[ #?#######???# #??##??????????????????? | | ??#[[ ###/ ##### # ?????????????????? | | ###[[ % % T + ??????????????????? | | k #??????????????????????? | | ### #??????????????????????? | | ??## ######## #??????????????????????? | | ???# #??????### t #??????????????????????? | | ???# #????????# #??????????????????????? | | ???# #????????# #??????????????????????? | | ???# #????????# " " @##?????????????????????? | | ???# #????????# """gg%######## ### #????????? | | ???# ?????????# """ g %= + ???????? | | ???? ?????????# % #????????? | | ???? ?????????# #????????? | | ??????????????# """ ##+#####+###+#????????? | | ??????????????# """ #? ??????????????????? | | ??????????????# """ #?? #?????????????????? | | ??????????????# ^ #??!#?????????????????? | | ??????????????# #???#?????????????????? | | ????????????? """ #?????????????????????? | | ?????????????? """ u #?????????????????????? | | ??????????????? """ #?????????????????????? | | ????????????????? ? #?????????????????????? | | ?????????????????????? #?????????????????????? | | ??????????????????????"" ??????????????????????? | | ???????????????????????" ??????????????????????? | | ???????????????????????" ??????????????????????? | | ?????????????????????????????????????????????????? | | ?????????????????????????????????????????????????? | | ?????????????????????????????????????????????????? | | ?????????????????????????????????????????????????? | | ?????????????????????????????????????????????????? | | ?????????????????????????????????????????????????? | | ?????????????????????????????????????????????????? | +----------------------------------------------------+ Best States ------------- Heat Dissipation 28 Energy Generation 19 Energy Capacity 185 Matter Stores 300 Matter Capacity 300 Sight Range 16 Terrain Scan Density 85 Evasion (%) 55 Item Schematics ----------------- None Robot Schematics ------------------ None Fabricated ------------ Nothing Alien Tech Used ----------------- None Achievements -------------- None Challenges ------------ None Game ------ Seed DirtyCloakingBeam Manual? 0 Play Time 00:08:06 Cumulative 7.4 hours Start 2025.01.05 @ 19:56:46 End 2025.01.05 @ 20:03:26 Sessions 1 Manual Loads 0 Difficulty Rogue Special Mode None Game No. 11 Rogue 11 Adventurer 0 Explorer 0 Win Type - Total 0 Types 0/0/0/0/0/0/0/0/0 Lore% 4 Gallery% 11 Achievement% 14 Wizard Run 0 Options --------- Layout 1 ASCII 0 Keyboard 0 Movement Mouse Keybinds 0 Fullscreen 1 Font 24/Smallcaps Map View 50x35 Zoom Use 0% Tactical HUD 0 Map Filters NONE Filters NONE Steam 0 RUN: ef704b77-2e45-47e0-9537-7964fe7f9611